fUSD/lending_fUSD_20251028
["ID","MTS","AMOUNT","RATE_DAILY","PERIOD"]
[392532643,1761619843782,-151.0,0.00028162,31]
[392532644,1761619843792,-151.0,0.00028162,31]
[392532645,1761619843801,-151.0,0.00028162,31]
[392532646,1761619843810,-151.0,0.00028162,31]
[392532647,1761619843820,-151.0,0.00028162,31]
[392532648,1761619843829,-151.0,0.00028162,31]
[392532649,1761619843838,-151.0,0.00028162,31]
[392532650,1761619843847,-205.690028,0.00028162,31]
[392532651,1761619843856,-151.0,0.00028162,31]
[392532652,1761619843865,-151.0,0.00028162,31]
[392532653,1761619843874,-151.0,0.00028162,31]
[392532654,1761619843884,-208.071327,0.00028162,31]
[392532655,1761619843893,-154.508038,0.00028162,31]
[392532656,1761619843903,-155.289552,0.00028162,31]
[392532657,1761619843912,-151.0,0.00028162,31]
[392532658,1761619843921,-151.0,0.00028162,31]
[392532659,1761619843931,-151.0,0.00028162,31]
[392532660,1761619843939,-151.0,0.00028162,31]
[392532661,1761619843949,-151.0,0.00028162,31]
[392532662,1761619843958,-151.0,0.00028162,31]
[392532663,1761619843969,-166.446908,0.00028162,31]
[392532664,1761619843978,-151.0,0.00028162,31]
[392532665,1761619843988,-151.0,0.00028162,31]
[392532666,1761619843998,-269.008544,0.00028162,31]
[392532667,1761619844008,-151.0,0.00028162,31]
[392532668,1761619844018,-151.0,0.00028162,31]
[392532669,1761619844027,-151.0,0.00028162,31]
[392532670,1761619844037,-151.0,0.00028162,31]
[392532671,1761619844046,-298.942315,0.00028162,31]
[392532672,1761619844055,-167.622138,0.00028162,31]
[392532673,1761619844065,-151.0,0.00028162,31]
[392532674,1761619844074,-184.292718,0.00028162,31]
[392532675,1761619844085,-151.0,0.00028162,31]
[392532676,1761619844094,-164.369476,0.00028162,31]
[392532677,1761619844104,-151.0,0.00028162,31]
[392532678,1761619844113,-151.0,0.00028162,31]
[392532679,1761619844122,-151.0,0.00028162,31]
[392532680,1761619844131,-151.0,0.00028162,31]
[392532681,1761619844141,-151.0,0.00028162,31]
[392532682,1761619844150,-151.0,0.00028162,31]
[392532683,1761619844159,-157.993615,0.00028162,31]
[392532684,1761619844169,-151.0,0.00028162,31]
[392532685,1761619844178,-151.0,0.00028162,31]
[392532686,1761619844189,-251.875473,0.00028162,31]
[392532687,1761619844200,-153.36839,0.00028162,31]
[392532688,1761619844210,-151.0,0.00028162,31]
[392532689,1761619844219,-151.0,0.00028162,31]
[392532690,1761619844228,-156.295441,0.00028162,31]
[392532691,1761619844240,-151.0,0.00028162,31]
[392532692,1761619844249,-152.701864,0.00028162,31]
[392532693,1761619844258,-151.0,0.00028162,31]
[392532694,1761619844267,-151.0,0.00028162,31]
[392532695,1761619844276,-151.0,0.00028162,31]
[392532696,1761619844285,-151.0,0.00028162,31]
[392532697,1761619844295,-151.0,0.00028162,31]
[392532698,1761619844307,-151.0,0.00028162,31]
[392532699,1761619844317,-151.0,0.00028162,31]
[392532700,1761619844327,-295.017412,0.00028162,31]
[392532701,1761619844339,-151.0,0.00028162,31]
[392532702,1761619844350,-151.0,0.00028162,31]
[392532703,1761619844361,-151.0,0.00028162,31]
[392532704,1761619844371,-151.0,0.00028162,31]
[392532705,1761619844383,-151.0,0.00028162,31]
[392532706,1761619844396,-151.0,0.00028162,31]
[392532707,1761619844405,-151.0,0.00028162,31]
[392532708,1761619844416,-151.0,0.00028162,31]
[392532709,1761619844427,-151.0,0.00028162,31]
[392532710,1761619844438,-151.0,0.00028162,31]
[392532711,1761619844447,-151.0,0.00028162,31]
[392532712,1761619844457,-151.0,0.00028162,31]
[392532713,1761619844466,-151.0,0.00028162,31]
[392532714,1761619844476,-151.0,0.00028162,31]
[392532715,1761619844486,-151.0,0.00028162,31]
[392532716,1761619844497,-294.114963,0.00028162,31]
[392532717,1761619844506,-151.0,0.00028162,31]
[392532718,1761619844515,-151.0,0.00028162,31]
[392532719,1761619844526,-177.018303,0.00028162,31]
[392532720,1761619844536,-151.0,0.00028162,31]
[392532721,1761619844545,-151.0,0.00028162,31]
[392532722,1761619844554,-152.358787,0.00028162,31]
[392532723,1761619844565,-151.0,0.00028162,31]
[392532724,1761619844575,-151.0,0.00028162,31]
[392532725,1761619844585,-151.0,0.00028162,31]
[392532726,1761619844594,-151.0,0.00028162,31]
[392532727,1761619844604,-151.0,0.00028162,31]
[392532728,1761619844614,-151.0,0.00028162,31]
[392532729,1761619844625,-151.0,0.00028162,31]
[392532730,1761619844635,-151.0,0.00028162,31]
[392532731,1761619844645,-151.0,0.00028162,31]
[392532732,1761619844654,-151.0,0.00028162,31]
[392532733,1761619844665,-291.836669,0.00028162,31]
[392532734,1761619844675,-151.0,0.00028162,31]
[392532735,1761619844686,-151.0,0.00028162,31]
[392532736,1761619844697,-151.0,0.00028162,31]
[392532737,1761619844708,-151.0,0.00028162,31]
[392532738,1761619844719,-151.0,0.00028162,31]
[392532739,1761619844729,-151.0,0.00028162,31]
[392532740,1761619844739,-151.0,0.00028162,31]
[392532741,1761619844748,-151.0,0.00028162,31]
[392532742,1761619844758,-198.482001,0.00028162,31]
[392532743,1761619844768,-152.900672,0.00028162,31]
[392532744,1761619844777,-281.265013,0.00028162,31]
[392532745,1761619844786,-174.551514,0.00028162,31]
[392532746,1761619844796,-440.169622,0.00028162,30]
[392532747,1761619844805,-440.169622,0.00028162,30]
[392532748,1761619844814,-440.169622,0.00028162,30]
[392532749,1761619844823,-440.169622,0.00028162,30]
[392532750,1761619844832,-440.169622,0.00028162,30]
[392532751,1761619844842,-440.169622,0.00028162,30]
[392532752,1761619844851,-151.0,0.00028162,31]
[392532753,1761619844860,-440.169622,0.00028162,30]
[392532754,1761619844869,-151.0,0.00028162,31]
[392532755,1761619844879,-151.0,0.00028162,31]
[392532756,1761619844890,-440.169622,0.00028162,30]
[392532757,1761619844902,-151.0,0.00028162,31]
[392532758,1761619844911,-440.169622,0.00028162,30]
[392532759,1761619844922,-152.892432,0.00028162,31]
[392532760,1761619844933,-440.169622,0.00028162,30]
[392532761,1761619844943,-440.169622,0.00028162,30]
[392532762,1761619844954,-440.169622,0.00028162,30]
[392532763,1761619844964,-440.169622,0.00028162,30]
[392532764,1761619844975,-440.169622,0.00028162,30]
[392532765,1761619844986,-440.169622,0.00028162,30]
[392532766,1761619844996,-440.169622,0.00028162,30]
[392532767,1761619845005,-151.0,0.00028162,31]
[392532768,1761619845015,-151.0,0.00028162,31]
[392532769,1761619845024,-151.0,0.00028162,31]
[392532770,1761619845033,-151.0,0.00028162,31]
[392532771,1761619845042,-151.0,0.00028162,31]
[392532772,1761619845051,-151.0,0.00028162,31]
[392532773,1761619845060,-151.0,0.00028162,31]
[392532774,1761619845070,-151.0,0.00028162,31]
[392532775,1761619845080,-151.0,0.00028162,31]
[392532776,1761619845091,-202.462528,0.00028162,31]
[392532777,1761619845101,-151.0,0.00028162,31]
[392532778,1761619845111,-156.991741,0.00028162,31]
[392532779,1761619845121,-151.0,0.00028162,31]
[392532780,1761619845133,-151.0,0.00028162,31]
[392532781,1761619845142,-160.354938,0.00028162,31]
[392532782,1761619845152,-306.633218,0.00028162,31]
[392532783,1761619845162,-306.633218,0.00028162,31]
[392532784,1761619845172,-306.633218,0.00028162,31]
[392532785,1761619845182,-306.633218,0.00028162,31]
[392532786,1761619845197,-306.633218,0.00028162,31]
[392532787,1761619845208,-306.633218,0.00028162,31]
[392532788,1761619845217,-306.633218,0.00028162,31]
[392532789,1761619845226,-151.0,0.00028162,31]
[392532790,1761619845235,-306.633218,0.00028162,31]
[392532791,1761619845246,-151.0,0.00028162,31]
[392532792,1761619845255,-227.567799,0.00028162,31]
[392532793,1761619845264,-306.633218,0.00028162,31]
[392532794,1761619845274,-151.0,0.00028162,30]
[392532795,1761619845283,-306.633218,0.00028162,31]
[392532796,1761619845292,-151.0,0.00028162,30]
[392532797,1761619845301,-306.633218,0.00028162,31]
[392532798,1761619845311,-165.391577,0.00028162,30]
[392532799,1761619845320,-306.633218,0.00028162,31]
[392532800,1761619845329,-306.633218,0.00028162,31]
[392532801,1761619845338,-306.633218,0.00028162,31]
[392532802,1761619845348,-306.633218,0.00028162,31]
[392532803,1761619845363,-306.633218,0.00028162,31]
[392532804,1761619845374,-190.627361,0.00028162,31]
[392532805,1761619845385,-151.0,0.00028162,31]
[392532806,1761619845396,-183.772863,0.00028162,31]
[392532807,1761619845405,-156.373014,0.00028162,31]
[392532808,1761619845414,-505.39078703,0.00028173,5]
[392532809,1761619845424,-500.0,0.00028173,2]
[392532810,1761619845435,-500.0,0.00028173,5]
[392532811,1761619845445,-500.0,0.00028173,5]
[392532812,1761619845454,-500.0,0.00028173,5]
[392532813,1761619845463,-500.0,0.00028173,5]
[392532814,1761619845472,-255.2082825,0.00028173,2]
[392532815,1761619845485,-500.0,0.00028173,5]
[392532816,1761619845496,-155.883487,0.00028173,31]
[392532817,1761619845506,-326.53518,0.00028173,31]
[392532818,1761619845515,-326.53518,0.00028173,31]
[392532819,1761619845523,-151.0,0.00028173,31]
[392532820,1761619845533,-155.83399,0.00028173,31]
[392532821,1761619845542,-326.53518,0.00028173,31]
[392532822,1761619845551,-151.0,0.00028173,31]
[392532823,1761619845561,-326.53518,0.00028173,31]
[392532824,1761619845570,-278.611265,0.00028173,31]
[392532825,1761619845579,-285.097715,0.00028173,31]
[392532826,1761619845588,-156.305583,0.00028173,31]
[392532827,1761619845597,-151.0,0.00028173,31]
[392532828,1761619845606,-151.0,0.00028173,31]
[392532829,1761619845615,-151.0,0.00028173,31]
[392532830,1761619845625,-151.0,0.00028173,31]
[392532831,1761619845633,-151.0,0.00028173,31]
[392532832,1761619845643,-151.0,0.00028173,31]
[392532833,1761619845652,-151.0,0.00028173,31]
[392532834,1761619845662,-151.0,0.00028173,31]
[392532835,1761619845671,-151.0,0.00028173,31]
[392532836,1761619845680,-151.0,0.00028173,31]
[392532837,1761619845689,-151.0,0.00028173,31]
[392532838,1761619845699,-440.169622,0.00028173,30]
[392532839,1761619845708,-151.0,0.00028173,31]
[392532840,1761619845719,-440.169622,0.00028173,30]
[392532841,1761619845728,-440.169622,0.00028173,30]
[392532842,1761619845739,-440.169615,0.00028173,30]
[392532843,1761619845748,-151.0,0.00028173,31]
[392532844,1761619845757,-151.0,0.00028173,31]
[392532845,1761619845766,-306.633218,0.00028173,31]
[392532846,1761619845775,-306.633218,0.00028173,31]
[392532847,1761619845784,-306.633218,0.00028173,31]
[392532848,1761619845795,-306.63322,0.00028173,31]
[392532849,1761619845806,-200.0,0.00028439,2]
[392532850,1761619845816,-15287.4101818,0.00028711,3]
[392532851,1761619845828,-1013.50810451,0.00028721,5]
[392532852,1761619845840,-1000.0,0.00028721,5]
[392532853,1761619845849,-459.30252075,0.00028721,5]
[392532854,1761619845858,-500.0,0.00028721,5]
[392532855,1761619845867,-151.0,0.00028721,31]
[392532856,1761619845876,-151.0,0.00028721,31]
[392532857,1761619845885,-179.2317,0.00028721,31]
[392532858,1761619845894,-151.0,0.00028721,31]
[392532860,1761619845904,-151.0,0.00028721,31]
[392532862,1761619845913,-151.0,0.00028721,31]
[392532864,1761619845922,-300.0,0.00028776,2]
[392532866,1761619845930,-15287.4101818,0.00029066,3]
[392532868,1761619845939,-156.198998,0.00029068,31]
[392532869,1761619845949,-165.295218,0.00029068,15]
[392532871,1761619845958,-151.0,0.00029068,31]
[392532872,1761619845967,-217.306247,0.00029068,31]
[392532874,1761619845976,-151.0,0.00029068,31]
[392532876,1761619845986,-151.0,0.00029068,31]
[392532878,1761619845996,-2104.8297,0.00029068,10]
[392532880,1761619846006,-4466.1475372,0.00029073,2]
[392532882,1761619846015,-151.0,0.00029076,31]
[392532884,1761619846024,-151.0,0.00029076,31]
[392532886,1761619846033,-151.0,0.00029076,31]
[392532888,1761619846043,-151.0,0.00029076,31]
[392532890,1761619846053,-151.564003,0.00029087,31]
[392532892,1761619846063,-186.574567,0.00029087,31]
[392532894,1761619846073,-151.0,0.00029087,31]
[392532896,1761619846083,-151.0,0.00029087,31]
[392532898,1761619846092,-151.0,0.00029087,31]
[392532901,1761619846102,-326.53518,0.00029087,31]
[392532903,1761619846111,-326.53518,0.00029087,31]
[392532904,1761619846120,-326.53518,0.00029087,31]
[392532905,1761619846130,-151.0,0.00029087,31]
[392532906,1761619846142,-326.53518,0.00029087,31]
[392532907,1761619846151,-151.0,0.00029087,31]
[392532908,1761619846161,-326.53518,0.00029087,31]
[392532909,1761619846172,-151.0,0.00029087,31]
[392532910,1761619846183,-326.53518,0.00029087,31]
[392532911,1761619846192,-269.325157,0.00029087,31]
[392532912,1761619846202,-326.53518,0.00029087,31]
[392532913,1761619846211,-326.53518,0.00029087,31]
[392532914,1761619846220,-151.0,0.00029087,31]
[392532915,1761619846230,-151.0,0.00029087,31]
[392532916,1761619846240,-151.0,0.00029087,31]
[392532917,1761619846249,-243.905941,0.00029087,31]
[392532918,1761619846260,-153.54,0.00029209,2]
[392532919,1761619846269,-308.95961279,0.00029268,5]
[392532920,1761619846278,-15287.4101818,0.000297,3]
[392532921,1761619846287,-239.677425,0.0002972,31]
[392532922,1761619846295,-164.142747,0.0002972,31]
[392532923,1761619846304,-151.0,0.0002972,31]
[392532924,1761619846314,-161.699234,0.0002972,31]
[392532925,1761619846324,-326.53518,0.0002972,31]
[392532926,1761619846333,-326.53518,0.0002972,31]
[392532927,1761619846343,-151.0,0.0002972,31]
[392532928,1761619846355,-326.53518,0.0002972,31]
[392532929,1761619846364,-326.535176,0.0002972,31]
[392532930,1761619846375,-15287.4101818,0.0002972,3]
[392532931,1761619846385,-14975.8300481,0.0002972,3]
[392532932,1761619846398,-232.03,0.0002973,14]
[392532933,1761619846407,-573.0,0.0002973,2]
[392532934,1761619846417,-2056.0,0.0002973,2]
[392532935,1761619846428,-820.0,0.0002973,2]
[392532936,1761619846437,-3417.0,0.0002973,2]
[392532937,1761619846446,-1313.0,0.0002973,2]
[392532938,1761619846456,-606.0,0.0002973,2]
[392532939,1761619846465,-1593.0,0.0002973,2]
[392532940,1761619846476,-1271.0,0.0002973,2]
[392532942,1761619846486,-818.0,0.0002973,2]
[392532944,1761619846497,-6625.0,0.0002973,2]
[392532946,1761619846506,-558.0,0.0002973,2]
[392532947,1761619846515,-150.534,0.0002973,2]
[392532949,1761619846524,-150.622,0.0002973,2]
[392532951,1761619846533,-6463.0,0.0002973,2]
[392532953,1761619846542,-3491.0,0.0002973,2]
[392532955,1761619846552,-505.15916461,0.00029863,5]
[392532956,1761619846561,-159.36884742,0.00029863,2]
[392532958,1761619846571,-160.36930874,0.00029863,3]
[392532960,1761619846579,-500.0,0.00029863,5]
[392532962,1761619846589,-160.40908375,0.00029863,2]
[392532964,1761619846598,-233.83756778,0.0003,2]
[392532965,1761619846607,-232.03,0.00030004,14]
[392532966,1761619846616,-502.54165747,0.00030073,5]
[392532967,1761619846626,-504.69378046,0.00030073,5]
[392532968,1761619846635,-501.89228885,0.00030073,5]
[392532969,1761619846645,-501.58752739,0.00030073,5]
[392532971,1761619846654,-299.72795716,0.00030073,3]
[392532973,1761619846663,-503.37131426,0.00030073,5]
[392532975,1761619846673,-15287.4101818,0.00030074,3]
[392532976,1761619846682,-14975.8300481,0.00030079,3]
[392532977,1761619846691,-4466.1475372,0.00030084,2]
[392532978,1761619846703,-1189.0,0.000301,2]
[392532979,1761619846712,-156.031923,0.000301,30]
[392532980,1761619846722,-300.0,0.00030146,2]
[392532981,1761619846732,-157.205324,0.00030265,31]
[392532982,1761619846741,-151.66150688,0.00030265,2]
[392532983,1761619846751,-151.0,0.00030265,31]
[392532984,1761619846760,-1237.0,0.00030265,7]
[392532985,1761619846768,-758.2194,0.00030265,2]
[392532986,1761619846778,-232.03,0.00030278,14]
[392532987,1761619846787,-210.0,0.00030304,2]
[392532988,1761619846796,-758.21941,0.0003031,2]
[392532989,1761619846806,-15287.4101818,0.00030393,3]
[392532990,1761619846815,-275.13,0.00030403,2]
[392532991,1761619846824,-198.07153264,0.0003041,5]
[392532992,1761619846833,-14975.8300481,0.0003049,3]
[392532993,1761619846842,-232.03,0.00030552,14]
[392532994,1761619846851,-165.774,0.00030656,26]
[392532995,1761619846860,-758.21941,0.0003081,2]
[392532996,1761619846869,-1000.0,0.00030814,2]
[392532997,1761619846878,-232.03,0.00030826,14]
[392532998,1761619846887,-500.0,0.0003105,15]
[392532999,1761619846896,-151.0,0.00031061,31]
[392533000,1761619846906,-4466.1475372,0.00031095,2]
[392533001,1761619846916,-14975.8300481,0.00031106,3]
[392533002,1761619846926,-15287.4101818,0.00031117,3]
[392533003,1761619846936,-14975.8300481,0.00031121,3]
[392533004,1761619846946,-15287.4101818,0.00031131,3]
[392533005,1761619846956,-14975.8300481,0.00031131,3]
[392533006,1761619846966,-15287.4101818,0.00031141,3]
[392533007,1761619846976,-14975.8300481,0.00031141,3]
[392533008,1761619846985,-15287.4101818,0.00031141,3]
[392533009,1761619846996,-14975.8300481,0.00031141,3]
[392533010,1761619847006,-150.0,0.00031151,31]
[392533011,1761619847015,-158.57989462,0.00031151,31]
[392533012,1761619847024,-154.94825332,0.00031151,31]
[392533013,1761619847033,-150.0,0.00031151,31]
[392533014,1761619847043,-500.0,0.00031151,31]
[392533015,1761619847052,-150.0,0.00031151,31]
[392533016,1761619847061,-150.0,0.00031151,31]
[392533017,1761619847071,-500.0,0.00031151,31]
[392533018,1761619847081,-158.63913633,0.00031151,31]
[392533019,1761619847091,-235.94775294,0.00031151,31]
[392533020,1761619847100,-150.0,0.00031151,31]
[392533021,1761619847110,-150.0,0.00031151,31]
[392533022,1761619847119,-150.0,0.00031151,31]
[392533023,1761619847128,-155.516387,0.00031151,31]
[392533024,1761619847138,-3725.92457735,0.00031151,3]
[392533025,1761619847186,-560.47152291,0.00031151,3]
[392533026,1761619847954,-150.0,0.0002973,2]
[392533027,1761619847964,-10120.40652,0.00031151,3]
[392533028,1761619847976,-880.60756154,0.00031151,3]
[392533029,1761619847986,-2794.10926936,0.00031151,3]
[392533030,1761619847999,-1141.0,0.00031151,3]
[392533031,1761619848011,-11040.72077874,0.00031151,3]
[392533032,1761619848021,-1056.52970755,0.0003116,2]
[392533033,1761619848030,-500.14142475,0.0003116,7]
[392533034,1761619848040,-204.27800097,0.00031161,2]
[392533035,1761619848050,-4795.30064643,0.00031161,2]
[392533036,1761619848062,-512.66631999,0.00031161,2]
[392533037,1761619848073,-366.40636166,0.00031161,2]
[392533040,1761619931000,870.95596545,0.00037385,50]
[392533041,1761619940574,1600.0,0.00029775,120]
[392533044,1761620254204,468.21327261,0.00037382,50]
[392533045,1761620404818,164.0,0.00028158,120]
[392533046,1761620419911,1000.0,0.00037382,120]
[392533047,1761620429287,627.0075977,0.00037382,120]
[392533054,1761620688774,404.78,0.00014676,2]
[392533055,1761620688982,174.49461875,0.00015449,2]
[392533060,1761620777590,150.0,0.00027038,120]
[392533061,1761621025276,5562.95398511,0.0002,30]
[392533071,1761621032258,-230.28538125,0.00015449,2]
[392533072,1761621032272,-250.0,0.00015835,2]
[392533073,1761621032282,-404.78,0.00016221,2]
[392533074,1761621032293,-404.78,0.00016994,2]
[392533075,1761621032307,-185.35261621,0.00016994,2]
[392533076,1761621032318,-198.26044498,0.00016994,2]
[392533077,1761621032472,-51.73955502,0.00016994,2]
[392533078,1761621032482,-195.0,0.00016994,2]
[392533079,1761621032492,-309.938198,0.00017677,2]
[392533080,1761621032503,-404.78,0.00017766,2]
[392533081,1761621032513,-170.16520936,0.00018153,2]
[392533082,1761621032522,-468.37703762,0.00018252,2]
[392533083,1761621032534,-731.62296238,0.00018252,2]
[392533084,1761621032544,-300.0,0.00018252,2]
[392533085,1761621032553,-27496.40619102,0.00018253,2]
[392533086,1761621032563,-404.78,0.00018539,2]
[392533087,1761621032572,-151.0,0.00018845,2]
[392533088,1761621032582,-151.0,0.00018969,2]
[392533089,1761621032591,-151.0,0.00019012,2]
[392533090,1761621032605,-151.0,0.00019115,2]
[392533091,1761621032615,-404.78,0.00019311,2]
[392533092,1761621032624,-160.30389394,0.00019429,2]
[392533093,1761621032634,-500.0,0.00019429,2]
[392533095,1761621032644,-500.0,0.00019429,2]
[392533097,1761621032653,-522.99184572,0.00019429,2]
[392533099,1761621032663,-504.8773732,0.00019429,2]
[392533101,1761621032672,-170.40655889,0.00019429,2]
[392533103,1761621032682,-500.0,0.00019429,2]
[392533105,1761621032691,-607.8658381,0.00019429,2]
[392533107,1761621032701,-500.0,0.00019429,2]
[392533109,1761621032711,-500.0,0.00019977,2]
[392533110,1761621032720,-500.71394037,0.00019977,2]
[392533111,1761621032730,-1000.0,0.00019977,2]
[392533112,1761621032742,-365.0,0.00019999,2]
[392533113,1761621032755,-30000.0,0.0002,2]
[392533114,1761621032766,-404.78,0.00020084,2]
[392533115,1761621032775,-1355.47501076,0.00020524,2]
[392533116,1761621032784,-404.78,0.00020856,2]
[392533117,1761621032794,-173.14,0.00021307,2]
[392533118,1761621032807,-404.78,0.00021628,2]
[392533119,1761621032816,-900.37438533,0.00021652,2]
[392533120,1761621032826,-404.78,0.00022401,2]
[392533121,1761621032836,-3053.62762386,0.00022645,2]
[392533122,1761621032845,-404.78,0.00023173,2]
[392533123,1761621032855,-1303.24122636,0.00023277,2]
[392533124,1761621032864,-599.37450015,0.00023745,2]
[392533125,1761621032874,-404.78,0.00023946,2]
[392533126,1761621032883,-404.78,0.00024718,2]
[392533127,1761621032892,-1205.99,0.00025,2]
[392533128,1761621032902,-404.78,0.00025491,2]
[392533129,1761621032911,-150.0,0.000256,2]
[392533130,1761621032921,-404.78,0.00026263,2]
[392533131,1761621032930,-1852.42,0.00026586,2]
[392533132,1761621032940,-476.88268571,0.00026983,2]
[392533133,1761621032949,-172.74,0.00027035,2]
[392533134,1761621032958,-404.78,0.00027035,2]
[392533135,1761621032969,-150.0,0.00027038,2]
[392533136,1761621032979,-1186.0,0.00027776,2]
[392533137,1761621032988,-904.0,0.00027776,2]
[392533138,1761621033003,-6438.132,0.00027776,2]
[392533139,1761621033013,-3491.0,0.00027776,2]
[392533140,1761621033022,-305.301,0.00027776,2]
[392533141,1761621033031,-404.78,0.00027808,2]
[392533142,1761621033041,-404.78,0.0002858,2]
[392533143,1761621033051,-500.0,0.0002932,5]
[392533144,1761621033060,-500.0,0.0002932,5]
[392533145,1761621033070,-404.78,0.00029353,2]
[392533146,1761621033079,-1189.27920416,0.000296,2]
[392533147,1761621033088,-150.453,0.00029813,2]
[392533148,1761621033352,-289.131,0.00029813,2]
[392533149,1761621033362,-150.0,0.00029813,2]
[392533150,1761621033372,-999.99,0.00029815,2]
[392533151,1761621033382,-9999.99,0.00029815,2]
[392533152,1761621033391,-9999.99,0.00029815,2]
[392533153,1761621033400,-1518.93,0.00029815,2]
[392533154,1761621033410,-2044.57,0.00029815,2]
[392533155,1761621033419,-879.0,0.00029815,20]
[392533156,1761621033428,-9999.99,0.00029815,2]
[392533157,1761621033437,-306.58,0.00029815,2]
[392533158,1761621033447,-17275.07,0.00029815,10]
[392533159,1761621033456,-1113.95,0.00029815,2]
[392533160,1761621033466,-150.99,0.00029815,2]
[392533161,1761621033475,-1060.71,0.00029815,2]
[392533162,1761621033484,-318.3,0.00029815,2]
[392533163,1761621033493,-150.42,0.0002982,2]
[392533164,1761621033503,-573.0,0.0002982,2]
[392533165,1761621033512,-2056.0,0.0002982,2]
[392533166,1761621033523,-2549.218,0.0002982,2]
[392533167,1761621033533,-819.0,0.0002982,2]
[392533168,1761621033542,-1593.0,0.0002982,2]
[392533169,1761621033552,-1313.0,0.0002982,2]
[392533170,1761621033561,-606.0,0.0002982,2]
[392533171,1761621033570,-1271.0,0.0002982,2]
[392533172,1761621033580,-818.0,0.0002982,2]
[392533173,1761621033589,-168.72,0.0002982,14]
[392533174,1761621033599,-152.0,0.0002986,3]
[392533175,1761621033610,-505.32690918,0.00029868,5]
[392533176,1761621033619,-574.97461915,0.00029868,5]
[392533177,1761621033631,-334.35,0.00030004,2]
[392533178,1761621033640,-176.16,0.00030009,2]
[392533179,1761621033651,-168.72,0.00030094,14]
[392533180,1761621033661,-500.0,0.00030137,15]
[392533181,1761621033670,-334.35,0.00030214,2]
[392533182,1761621033680,-1236.56,0.00030225,2]
[392533183,1761621033691,-250.0,0.00030241,2]
[392533184,1761621033700,-200.0,0.00030262,2]
[392533185,1761621033710,-168.74,0.00030368,14]
[392533186,1761621033720,-152.0,0.00030386,4]
[392533187,1761621033730,-500.0,0.00030411,15]
[392533188,1761621033740,-334.35,0.00030424,2]
[392533189,1761621033749,-539.56,0.00030513,2]
[392533190,1761621033759,-476.05,0.00030513,2]
[392533191,1761621033768,-476.05,0.00030513,2]
[392533192,1761621033781,-470.76,0.00030513,2]
[392533193,1761621033790,-474.87,0.00030513,2]
[392533194,1761621033801,-643.49230448,0.00030621,2]
[392533195,1761621033811,-334.35,0.00030634,2]
[392533196,1761621033821,-170.57,0.00030653,26]
[392533197,1761621033831,-527.29,0.00030685,15]
[392533198,1761621033840,-1186.0,0.00030776,2]
[392533199,1761621033850,-904.0,0.00030776,2]
[392533200,1761621033860,-3491.0,0.00030776,2]
[392533201,1761621033870,-216.1297062,0.00030844,2]
[392533202,1761621034093,-118.2202938,0.00030844,2]
[392533203,1761621034103,-152.0,0.00030913,5]
[392533204,1761621034114,-500.0,0.00031,2]
[392533205,1761621034124,-166.66,0.00031011,2]
[392533206,1761621034134,-7084.1848158,0.00031027,2]
[392533207,1761621034145,-42097.64757596,0.00031027,2]
[392533208,1761621034162,-29288.68574034,0.00031027,2]
[392533209,1761621034173,-151.0,0.00031027,31]